lending/lending_fUSD_20260330
["ID","MTS","AMOUNT","RATE_DAILY","PERIOD"]
[419091526,1774863035034,-70695.79929354,0.00015361,2]
[419091531,1774863038103,-195.0,0.00014818,2]
[419091532,1774863038113,-179.38251524,0.00014827,2]
[419091533,1774863038123,-500.0,0.0001536,2]
[419091534,1774863038133,-74.94819424,0.0001536,2]
[419091535,1774863038145,-425.05180576,0.0001536,2]
[419091536,1774863038156,-277.15642906,0.0001536,2]
[419091537,1774863038167,-104.37864911,0.0001536,2]
[419091538,1774863038177,-283.47946895,0.00015361,2]
[419091539,1774863038189,-1633.00942212,0.00015361,2]
[419091540,1774863038213,-519.30507193,0.00015361,2]
[419091541,1774863038236,-766.39805676,0.00015361,2]
[419091542,1774863038247,-713.08512,0.00015361,2]
[419091543,1774863038259,-354.425,0.00015361,2]
[419091578,1774863040927,-600.0,0.00015361,2]
[419091579,1774863040940,-258.03770747,0.00015361,2]
[419091594,1774863043598,-621.0,0.00015134,2]
[419091595,1774863043608,-1691.60033805,0.00015261,2]
[419091596,1774863043635,-1719.5324,0.00015261,2]
[419091597,1774863043676,-700.774621,0.00015261,2]
[419091598,1774863043706,-888.09264095,0.00015261,2]
[419091599,1774863043716,-9106.69559346,0.00015361,2]
[419091600,1774863043728,-1131.9414888,0.00015361,2]
[419091601,1774863046365,-5878.40577931,0.00015361,2]
[419092955,1774863330868,377.89,6.781e-05,2]
[419092956,1774863331048,377.89,7.138e-05,2]
[419092957,1774863331264,377.89,7.495e-05,2]
[419092958,1774863331590,377.89,7.852e-05,2]
[419092959,1774863331648,377.89,8.208e-05,2]
[419092961,1774863983345,521.02,7.783e-05,2]
[419092962,1774864155129,-239.0,8.565e-05,2]
[419092963,1774864155150,-377.89,8.565e-05,2]
[419092964,1774864155547,-377.89,8.922e-05,2]
[419092965,1774864155570,-377.89,9.279e-05,2]
[419092966,1774864155590,-1582.3,9.3e-05,2]
[419092967,1774864155611,-377.89,9.636e-05,2]
[419092980,1774864232223,-377.89,9.993e-05,2]
[419092981,1774864232233,-260.0,9.993e-05,2]
[419092982,1774864232242,-377.89,0.0001035,2]
[419092983,1774864232266,-377.89,0.00010707,2]
[419092984,1774864232286,-600.0,0.00010992,2]
[419092985,1774864232301,-600.0,0.00010992,2]
[419092986,1774864232317,-600.0,0.00010992,2]
[419092987,1774864232336,-600.0,0.00010992,2]
[419092988,1774864232351,-600.0,0.00010992,2]
[419092989,1774864232370,-2500.0,0.00010992,2]
[419092990,1774864232385,-2500.0,0.00010992,2]
[419092991,1774864232400,-2500.0,0.00010992,2]
[419092992,1774864232414,-2500.0,0.00010992,2]
[419092993,1774864232429,-2500.0,0.00010992,2]
[419092994,1774864232445,-150.0,0.00011,2]
[419092995,1774864232463,-150.0,0.00011017,2]
[419092996,1774864232480,-377.89,0.00011063,2]
[419092997,1774864232492,-377.89,0.0001142,2]
[419092998,1774864232505,-1511.52,0.00011507,2]
[419092999,1774864232520,-250.0,0.00011762,2]
[419093000,1774864232535,-377.89,0.00011777,2]
[419093001,1774864232551,-2312.78,0.00011857,2]
[419093002,1774864232570,-150.0,0.00011964,2]
[419093003,1774864232582,-150.0,0.00012038,2]
[419093004,1774864232616,-1200.0,0.00012059,2]
[419093005,1774864232632,-1500.0,0.0001206,2]
[419093006,1774864232649,-377.89,0.00012134,2]
[419093007,1774864232665,-300.0,0.00012159,2]
[419093008,1774864232681,-151.0,0.0001216,2]
[419093009,1774864232697,-151.0,0.0001216,2]
[419093010,1774864232712,-151.0,0.0001216,2]
[419093011,1774864232728,-151.0,0.0001216,2]
[419093012,1774864232742,-151.0,0.0001216,2]
[419093013,1774864232757,-151.0,0.0001216,2]
[419093014,1774864232771,-151.0,0.0001216,2]
[419093015,1774864232786,-151.0,0.0001216,2]
[419093016,1774864232800,-151.0,0.0001216,2]
[419093017,1774864232815,-151.0,0.0001216,2]
[419093018,1774864232832,-151.0,0.0001216,2]
[419093019,1774864232847,-327.14,0.00012167,2]
[419093020,1774864232863,-2000.0,0.00012167,2]
[419093021,1774864232879,-1462.92,0.00012191,2]
[419093022,1774864232894,-166.66,0.00012289,2]
[419093023,1774864232908,-196.7083,0.000124,7]
[419093024,1774864232923,-377.89,0.00012491,2]
[419093025,1774864232937,-166.66,0.00012694,2]
[419093026,1774864232951,-377.89,0.00012848,2]
[419093027,1774864232965,-250.0,0.00013,2]
[419093028,1774864232980,-4798.09,0.00013087,2]
[419093029,1774864232994,-166.66,0.000131,2]
[419093030,1774864233008,-377.89,0.00013205,2]
[419093031,1774864233022,-1151.0,0.00013264,2]
[419093032,1774864233037,-420.0,0.00013346,2]
[419093033,1774864233051,-160.0,0.00013365,2]
[419093034,1774864233064,-160.0,0.00013365,2]
[419093035,1774864233078,-3240.0,0.00013425,2]
[419093036,1774864233092,-166.66,0.00013506,2]
[419093037,1774864233106,-377.89,0.00013562,2]
[419093038,1774864233120,-482.60763444,0.00013572,2]
[419093039,1774864233133,-500.0,0.00013572,2]
[419093040,1774864233148,-153.50389758,0.00013572,2]
[419093041,1774864233161,-500.0,0.00013572,2]
[419093042,1774864233175,-211.14517673,0.00013572,2]
[419093043,1774864233190,-10000.01,0.00013573,2]
[419093044,1774864233204,-24464.04209801,0.00013573,2]
[419093045,1774864233221,-4307.940047,0.00013573,2]
[419093046,1774864233334,-508.61,0.00013573,2]
[419093098,1774864238076,-387.85191081,0.00013573,2]
[419093099,1774864238091,-3731.8588095,0.00013573,2]
[419093100,1774864238284,-700.50075712,0.00013573,2]
[419093101,1774864238299,-772.8613803,0.00013573,2]
[419093102,1774864238314,-535.12736794,0.00013573,2]
[419093103,1774864238442,-30309.94,0.00013573,2]
[419093110,1774864241611,-354.3,0.000131,2]
[419093111,1774864241622,-145.7,0.000131,2]
[419093112,1774864241632,-381.97643239,0.00013573,2]
[419093116,1774864243592,-331.715,0.00013573,2]
[419093117,1774864243708,-621.0,0.00013573,2]
[419093118,1774864243755,-1574.57056364,0.00013573,2]
[419093119,1774864243766,-3545.8558786,0.00013573,2]
[419093120,1774864243778,-855.01634699,0.00013573,2]
[419093121,1774864243814,-586141.6409077,0.00013573,2]
[419093122,1774864243824,-2000.0,0.00013688,2]
[419093123,1774864243834,-257.9611,0.000138,12]
[419093124,1774864243844,-2476.21,0.0001381,2]
[419093125,1774864243854,-1830.54,0.0001381,2]
[419093126,1774864243864,-254.83,0.00013822,2]
[419093127,1774864243874,-166.66,0.00013911,2]
[419093128,1774864243884,-166.66,0.00013964,2]
[419093129,1774864243893,-166.66,0.00014258,2]
[419093130,1774864243903,-166.66,0.00014317,2]
[419093131,1774864243914,-632.25827644,0.00014373,2]
[419093132,1774864243924,-151.0,0.00014392,2]
[419093133,1774864243935,-413.74403395,0.00014424,2]
[419093134,1774864243945,-151.0,0.00014475,2]
[419093135,1774864243955,-166.66,0.00014552,2]
[419093136,1774864243965,-413.74403395,0.00014588,2]
[419093137,1774864243974,-587.0,0.00014648,2]
[419093139,1774864243984,-413.74403395,0.00014752,2]
[419093140,1774864243994,-500.0,0.00014795,2]
[419093141,1774864244005,-500.0,0.00014824,2]
[419093142,1774864244015,-500.0,0.00014824,2]
[419093143,1774864244024,-500.0,0.00014824,2]
[419093144,1774864244033,-500.0,0.00014824,2]
[419093145,1774864244043,-500.0,0.00014824,2]
[419093146,1774864244053,-363.0328685,0.00014824,2]
[419093147,1774864244062,-500.0,0.00014824,2]
[419093148,1774864244072,-500.0,0.00014824,2]
[419093149,1774864244082,-500.0,0.00014824,2]
[419093150,1774864244092,-500.0,0.00014824,2]
[419093151,1774864244101,-436.48877466,0.00014824,2]
[419093152,1774864244111,-500.0,0.00014824,2]
[419093153,1774864244121,-156.47307363,0.00014824,2]
[419093154,1774864244131,-500.0,0.00014824,2]
[419093155,1774864244140,-500.0,0.00014824,2]
[419093156,1774864244150,-328.31249124,0.00014824,2]
[419093157,1774864244160,-500.0,0.00014824,2]
[419093158,1774864244169,-500.0,0.00014824,2]
[419093159,1774864244179,-500.0,0.00014824,2]
[419093160,1774864244189,-500.0,0.00014824,2]
[419093161,1774864244199,-150.0,0.00014824,2]
[419093162,1774864244208,-500.0,0.00014824,2]
[419093163,1774864244218,-500.0,0.00014824,2]
[419093164,1774864244227,-150.0,0.00014824,2]
[419093165,1774864244237,-500.0,0.00014824,2]
[419093166,1774864244246,-500.0,0.00014824,2]
[419093167,1774864244255,-500.0,0.00014824,2]
[419093168,1774864244264,-150.0,0.00014824,2]
[419093169,1774864244274,-500.0,0.00014824,2]
[419093170,1774864244283,-185.83264004,0.00014824,2]
[419093171,1774864244293,-500.0,0.00014824,2]
[419093172,1774864244302,-177.96885896,0.00014824,2]
[419093173,1774864244311,-500.0,0.00014824,2]
[419093174,1774864244321,-500.0,0.00014824,2]
[419093175,1774864244330,-500.0,0.00014824,2]
[419093176,1774864244339,-500.0,0.00014824,2]
[419093177,1774864244349,-500.0,0.00014824,2]
[419093178,1774864244359,-500.0,0.00014824,2]
[419093179,1774864244367,-500.0,0.00014824,2]
[419093180,1774864244377,-150.0,0.00014824,2]
[419093181,1774864244386,-500.0,0.00014824,2]
[419093182,1774864244395,-500.0,0.00014824,2]
[419093183,1774864244404,-500.0,0.00014824,2]
[419093184,1774864244415,-500.0,0.00014824,2]
[419093185,1774864244424,-150.0,0.00014824,2]
[419093186,1774864244434,-500.0,0.00014824,2]
[419093187,1774864244444,-500.0,0.00014824,2]
[419093188,1774864244454,-500.0,0.00014824,2]
[419093189,1774864244463,-500.0,0.00014824,2]
[419093190,1774864244473,-150.0,0.00014824,2]
[419093191,1774864244482,-219.70242025,0.00014824,2]
[419093192,1774864244492,-233.31580361,0.00014824,2]
[419093193,1774864244502,-500.0,0.00014824,2]
[419093194,1774864244512,-500.0,0.00014824,2]
[419093195,1774864244522,-150.0,0.00014824,2]
[419093196,1774864244532,-500.0,0.00014824,2]
[419093197,1774864244541,-249.05368474,0.00014824,2]
[419093198,1774864244551,-586.12873463,0.00014824,2]
[419093199,1774864244561,-156.13980161,0.00014824,2]
[419093200,1774864244570,-500.0,0.00014824,2]
[419093201,1774864244579,-500.0,0.00014824,2]
[419093202,1774864244589,-500.0,0.00014824,2]
[419093203,1774864244599,-500.0,0.00014824,2]
[419093204,1774864244609,-150.0,0.00014824,2]
[419093205,1774864244618,-500.0,0.00014824,2]
[419093206,1774864244628,-500.0,0.00014824,2]
[419093207,1774864244637,-500.0,0.00014824,2]
[419093208,1774864244647,-500.0,0.00014824,2]
[419093209,1774864244657,-500.0,0.00014824,2]
[419093210,1774864244666,-207.73875008,0.00014824,2]
[419093211,1774864244675,-500.0,0.00014824,2]
[419093212,1774864244684,-357.04391088,0.00014824,2]
[419093213,1774864244694,-500.0,0.00014824,2]
[419093214,1774864244703,-625.7173483,0.00014824,2]
[419093215,1774864244713,-762.0,0.00014824,2]
[419093216,1774864244722,-762.0,0.00014824,2]
[419093217,1774864244732,-762.0,0.00014824,2]
[419093218,1774864244741,-762.0,0.00014824,2]
[419093219,1774864244750,-762.0,0.00014824,2]
[419093220,1774864244760,-762.0,0.00014824,2]
[419093221,1774864244770,-500.0,0.00014824,2]
[419093222,1774864244780,-762.0,0.00014824,2]
[419093223,1774864244790,-500.0,0.00014824,2]
[419093224,1774864244799,-762.0,0.00014824,2]
[419093225,1774864244809,-500.0,0.00014824,2]
[419093226,1774864244818,-762.0,0.00014824,2]
[419093227,1774864244828,-762.0,0.00014824,2]
[419093228,1774864244838,-500.0,0.00014824,2]
[419093229,1774864244848,-762.0,0.00014824,2]
[419093230,1774864244858,-500.0,0.00014824,2]
[419093231,1774864244868,-762.0,0.00014824,2]
[419093232,1774864244878,-500.0,0.00014824,2]
[419093233,1774864244888,-762.0,0.00014824,2]
[419093234,1774864244897,-500.0,0.00014824,2]
[419093235,1774864244906,-762.0,0.00014824,2]
[419093236,1774864244916,-500.0,0.00014824,2]
[419093237,1774864244925,-762.0,0.00014824,2]
[419093238,1774864244935,-523.30048806,0.00014824,2]
[419093239,1774864244945,-762.0,0.00014824,2]
[419093240,1774864244956,-762.0,0.00014824,2]
[419093241,1774864244966,-762.0,0.00014824,2]
[419093242,1774864244975,-762.0,0.00014824,2]
[419093243,1774864244985,-762.0,0.00014824,2]
[419093244,1774864244995,-762.0,0.00014824,2]
[419093245,1774864245004,-762.0,0.00014824,2]
[419093246,1774864245014,-166.66,0.00014846,2]
[419093247,1774864245024,-500.0,0.0001485,2]
[419093248,1774864245033,-500.0,0.00014862,2]
[419093249,1774864245043,-500.0,0.00014862,2]
[419093250,1774864245053,-500.0,0.00014862,2]
[419093251,1774864245062,-500.0,0.00014862,2]
[419093252,1774864245071,-500.0,0.00014862,2]
[419093253,1774864245080,-500.0,0.00014862,2]
[419093254,1774864245090,-500.0,0.00014862,2]
[419093255,1774864245099,-500.0,0.00014862,2]
[419093256,1774864245108,-500.0,0.00014862,2]
[419093257,1774864245118,-500.0,0.00014862,2]
[419093258,1774864245128,-151.0,0.00014862,2]
[419093259,1774864245138,-500.0,0.00014862,2]
[419093260,1774864245147,-500.0,0.00014862,2]
[419093261,1774864245158,-174.61919141,0.00014862,2]
[419093262,1774864245167,-209.40437684,0.00014862,2]
[419093263,1774864245177,-250.0,0.00014862,2]
[419093264,1774864245186,-250.0,0.00014862,2]
[419093265,1774864245196,-250.0,0.00014862,2]
[419093266,1774864245206,-250.0,0.00014862,2]
[419093267,1774864245216,-250.0,0.00014862,2]
[419093268,1774864245225,-250.0,0.00014862,2]
[419093269,1774864245235,-250.0,0.00014862,2]
[419093270,1774864245245,-250.0,0.00014862,2]
[419093271,1774864245255,-250.0,0.00014862,2]
[419093272,1774864245264,-250.0,0.00014862,2]
[419093273,1774864245274,-299.92708446,0.00014862,2]
[419093274,1774864245283,-885.16573534,0.00014862,2]
[419093275,1774864245293,-413.74403395,0.00014916,2]
[419093276,1774864245302,-500.0,0.00014917,2]
[419093277,1774864245311,-151.0,0.00014917,2]
[419093278,1774864245321,-5000.0,0.0001496,2]
[419093279,1774864245330,-500.0,0.00014972,2]
[419093280,1774864245339,-151.0,0.00014972,2]
[419093281,1774864245348,-450.4448672,0.00014991,2]
[419093282,1774864245358,-300.0,0.00015,2]
[419093283,1774864245368,-500.0,0.00015027,2]
[419093284,1774864245377,-151.0,0.00015027,2]
[419093285,1774864245387,-160.0,0.00015049,7]
[419093286,1774864245396,-321.789557,0.00015049,7]
[419093287,1774864245406,-33011.0301,0.0001506,2]
[419093288,1774864245415,-1000.0,0.0001506,2]
[419093289,1774864245424,-413.74403395,0.0001508,2]
[419093290,1774864245433,-500.0,0.00015082,2]
[419093291,1774864245443,-151.0,0.00015082,2]
[419093292,1774864245452,-996.0,0.00015121,2]
[419093293,1774864245461,-1346.0,0.00015134,2]
[419093294,1774864245471,-3518.0,0.00015134,2]
[419093295,1774864245480,-1045.0,0.00015134,2]
[419093296,1774864245489,-1262.0,0.00015134,2]
[419093297,1774864245499,-150.0,0.00015134,2]
[419093298,1774864245508,-415.0,0.00015134,2]
[419093299,1774864245518,-3766.0,0.00015134,2]
[419093300,1774864245528,-6014.0,0.00015134,2]
[419093301,1774864245538,-500.0,0.00015137,2]
[419093302,1774864245550,-151.0,0.00015137,2]
[419093303,1774864245559,-166.66,0.0001514,2]
[419093304,1774864245568,-2621.177,0.00015183,2]
[419093305,1774864245578,-155.703,0.00015183,2]
[419093306,1774864245588,-500.0,0.00015192,2]
[419093307,1774864245598,-177.36745455,0.00015192,2]
[419093308,1774864245608,-2000.0,0.00015209,2]
[419093309,1774864245617,-413.74403395,0.00015244,2]
[419093310,1774864245627,-500.0,0.00015247,2]
[419093311,1774864245637,-955.05579742,0.00015257,2]
[419093312,1774864245647,-153.85472027,0.0001526,2]
[419093313,1774864245657,-338.2874,0.000153,17]
[419093314,1774864245667,-500.0,0.00015302,2]
[419093315,1774864245676,-674.33029697,0.00015327,2]
[419093316,1774864245686,-955.05579739,0.00015328,2]
[419093317,1774864245696,-1051.88,0.00015346,2]
[419093318,1774864245705,-1051.88,0.00015351,2]
[419093319,1774864245714,-21810.9110784,0.00015356,2]
[419093320,1774864245723,-162884.6330445,0.00015356,2]
[419093321,1774864245733,-500.0,0.00015357,2]
[419093322,1774864245742,-500.0,0.0001536,2]
[419093323,1774864245752,-545.76447195,0.0001536,2]
[419093324,1774864245761,-157.0,0.00015361,3]
[419093325,1774864245771,-200.0,0.00015361,2]
[419093326,1774864245780,-200.0,0.00015361,2]
[419093327,1774864245790,-1524.0,0.00015361,2]
[419093328,1774864245799,-1524.0,0.00015361,2]
[419093329,1774864245809,-1524.0,0.00015361,2]
[419093330,1774864245819,-1524.0,0.00015361,2]
[419093331,1774864245828,-1524.0,0.00015361,2]
[419093333,1774864245838,-1524.0,0.00015361,2]
[419093334,1774864245847,-1524.0,0.00015361,2]
[419093335,1774864245857,-1524.0,0.00015361,2]
[419093336,1774864245866,-1524.0,0.00015361,2]
[419093337,1774864245876,-1524.0,0.00015361,2]
[419093338,1774864245885,-1524.0,0.00015361,2]
[419093339,1774864245895,-1214.76979848,0.00015361,2]
[419093340,1774864245905,-200.0,0.00015361,2]
[419093341,1774864245914,-1524.0,0.00015361,2]
[419093342,1774864245924,-200.0,0.00015361,2]
[419093343,1774864245933,-1524.0,0.00015361,2]
[419093344,1774864245943,-1524.0,0.00015361,2]
[419093345,1774864245953,-1524.0,0.00015361,2]
[419093346,1774864245963,-1524.0,0.00015361,2]
[419093347,1774864245972,-1524.0,0.00015361,2]
[419093348,1774864245982,-1524.0,0.00015361,2]
[419093349,1774864245992,-1524.0,0.00015361,2]
[419093350,1774864246002,-1524.0,0.00015361,2]
[419093351,1774864246012,-1524.0,0.00015361,2]
[419093352,1774864246022,-1524.0,0.00015361,2]
[419093353,1774864246032,-1524.0,0.00015361,2]
[419093354,1774864246042,-1524.0,0.00015361,2]
[419093355,1774864246052,-1524.0,0.00015361,2]
[419093356,1774864246062,-1524.0,0.00015361,2]
[419093357,1774864246072,-151.0,0.00015363,2]
[419093358,1774864246082,-955.05579739,0.000154,2]
[419093359,1774864246092,-2808.0,0.000154,2]
[419093360,1774864246102,-413.74403395,0.00015408,2]
[419093361,1774864246112,-181.08010149,0.0001541,2]
[419093362,1774864246122,-217.15233878,0.0001541,2]
[419093363,1774864246131,-500.0,0.00015412,2]
[419093364,1774864246141,-166.66,0.00015434,2]
[419093365,1774864246151,-955.05579739,0.00015471,2]
[419093366,1774864246160,-1600.0,0.00015494,2]
[419093367,1774864246171,-4000.0,0.00015507,2]
[419093368,1774864246181,-200.0,0.00015515,2]
[419093369,1774864246190,-200.0,0.00015515,2]
[419093370,1774864246199,-200.0,0.00015515,2]
[419093371,1774864246209,-200.0,0.00015515,2]
[419093372,1774864246220,-955.05579739,0.00015543,2]
[419093373,1774864246229,-413.74403395,0.00015572,2]
[419093374,1774864246239,-955.05579739,0.00015614,2]
[419093375,1774864246248,-200.0,0.0001567,2]
[419093376,1774864246258,-200.0,0.0001567,2]
[419093377,1774864246268,-200.0,0.0001567,2]
[419093378,1774864246278,-200.0,0.0001567,2]
[419093379,1774864246288,-4654.63241334,0.0001568,2]
[419093380,1774864246298,-955.05579739,0.00015686,2]
[419093381,1774864246307,-161.0,0.0001572,2]
[419093382,1774864246318,-413.74403395,0.00015736,2]
[419093383,1774864246328,-196.0,0.00015753,2]
[419093384,1774864246337,-196.0,0.00015753,2]
[419093385,1774864246346,-204.0,0.00015753,2]
[419093386,1774864246355,-285.88,0.00015753,2]
[419093387,1774864246366,-955.05579739,0.00015757,2]
[419093388,1774864246375,-200.0,0.00015826,2]
[419093389,1774864246384,-200.0,0.00015826,2]
[419093390,1774864246394,-200.0,0.00015826,2]
[419093391,1774864246403,-200.0,0.00015826,2]
[419093392,1774864246413,-955.05579739,0.00015829,2]
[419093393,1774864246422,-2000.0,0.0001584,2]
[419093394,1774864246432,-2000.0,0.0001584,2]
[419093395,1774864246441,-2000.0,0.0001584,2]
[419093396,1774864246451,-500.0,0.00015872,2]
[419093397,1774864246460,-200.0,0.00015872,2]
[419093398,1774864246471,-1051.88,0.0001589,2]
[419093399,1774864246480,-2000.0,0.0001589,2]
[419093400,1774864246490,-4000.0,0.00015895,2]
[419093401,1774864246500,-37284.73934068,0.000159,7]
[419093402,1774864246509,-413.74403395,0.000159,2]
[419093403,1774864246519,-153.85472027,0.000159,2]
[419093404,1774864246528,-955.05579739,0.000159,2]
[419093405,1774864246537,-11996.82502603,0.00015956,2]
[419093406,1774864246547,-4019.10651946,0.00015956,2]
[419093407,1774864246557,-187.78006525,0.00015958,2]
[419093408,1774864246567,-225.18697532,0.00015958,2]
[419093409,1774864246576,-500.50490882,0.00015973,2]
[419093410,1774864246586,-200.0,0.00015985,2]
[419093411,1774864246596,-200.0,0.00015985,2]
[419093412,1774864246606,-200.0,0.00015985,2]
[419093413,1774864246616,-200.0,0.00015985,2]
[419093414,1774864246626,-1051.88,0.00015988,2]
[419093415,1774864246636,-1051.88,0.0001599,2]
[419093416,1774864246646,-1133.68324831,0.00015991,2]
[419093417,1774864246655,-265.9981368,0.00015991,2]
[419093418,1774864246666,-151.0,0.00015997,2]
[419093419,1774864246676,-65900.01120692,0.00015998,2]
[419093420,1774864246686,-600.0,0.00015999,2]
[419093421,1774864246695,-600.0000009,0.00015999,2]
[419093423,1774864246704,-200.0,0.00015999,2]
[419093425,1774864246714,-47690.46852775,0.00016,2]
[419093430,1774864247123,-11692.97674351,0.00016,2]
[419093431,1774864247142,-9792.95557324,0.00016,2]
[419093435,1774865245247,-283.99,0.00012254,2]
[419093436,1774865245269,-33.09313028,0.00013098,2]
[419093443,1774865432249,-963.0,0.00012835,2]
[419093444,1774865432259,-150.0,0.00012835,2]
[419093445,1774865432269,-300.0,0.00012835,2]
[419093446,1774865432280,-652.36219313,0.00012835,2]
[419093447,1774865432292,-345.51780687,0.00012835,2]
[419093448,1774865432460,-202.12,0.00012835,2]
[419093449,1774865432471,-300.0,0.00012835,2]
[419093450,1774865432482,-600.0,0.00012836,2]
[419093451,1774865432493,-1125.54346881,0.00012836,2]
[419093452,1774865432503,-1040.2442213,0.00012836,2]
[419093453,1774865432569,-52.4074242,0.00012836,2]
[419093454,1774865432579,-1043.92615333,0.00012836,2]
[419093455,1774865432589,-1036.59565212,0.00012836,2]
[419093456,1774865432601,-1001.73527912,0.00012836,2]
[419093457,1774865432611,-1063.0198377,0.00012836,2]
[419093458,1774865432621,-1087.12416964,0.00012836,2]
[419093459,1774865432632,-1108.68015881,0.00012836,2]
[419093460,1774865432642,-1131.01220764,0.00012836,2]
[419093461,1774865432651,-1055.86114073,0.00012836,2]
[419093462,1774865432661,-1104.21326299,0.00012836,2]
[419093463,1774865432671,-526.38753815,0.00012836,2]
[419093499,1774865438321,-521.26049977,0.00012836,2]
[419093500,1774865438331,-537.54630723,0.00012836,2]
[419093501,1774865438430,-477.20240579,0.00012836,2]
[419093502,1774865438440,-1041.13806608,0.00012836,2]
[419093503,1774865438450,-1045.85219949,0.00012836,2]
[419093504,1774865438459,-1017.39584475,0.00012836,2]
[419093505,1774865438469,-768.11148389,0.00012836,2]
[419093506,1774865438647,-258.87678369,0.00012836,2]
[419093507,1774865438657,-408.36518615,0.00012836,2]
[419093508,1774865438672,-613.92197607,0.00012836,2]
[419093509,1774865438682,-1113.42365088,0.00012836,2]
[419093510,1774865438691,-335.95906226,0.00012836,2]
[419093511,1774865438703,-385.00326224,0.00012836,2]
[419093512,1774865438714,-367.51195173,0.00012836,2]
[419093513,1774865438724,-891.898952,0.00012836,2]
[419093592,1774865440664,-279.89771197,0.00012579,2]
[419093593,1774865441411,-564.26975577,0.00012579,2]
[419093594,1774865441461,-163.61812596,0.00012579,2]
[419093595,1774865441479,-442.23053217,0.00012579,2]
[419093596,1774865441507,-463.17396815,0.00012579,2]
[419093607,1774865443563,-135.82229478,0.00012579,2]
[419093608,1774865443578,-1009.4153725,0.00012579,2]
[419093609,1774865443593,-1045.45024967,0.00012579,2]
[419093610,1774865443608,-244.39086783,0.00012836,2]
[419093611,1774865443622,-1087.77104764,0.00012836,2]
[419093612,1774865443637,-1130.53930311,0.00012836,2]
[419093613,1774865443653,-1039.46135942,0.00012836,2]
[419093614,1774865443667,-1086.58815891,0.00012836,2]
[419093615,1774865443682,-1133.47348304,0.00012836,2]
[419093616,1774865443696,-1110.59985268,0.00012836,2]
[419093617,1774865443710,-1093.0074594,0.00012836,2]
[419093618,1774865443725,-1067.08010875,0.00012836,2]
[419093619,1774865443739,-1116.8802839,0.00012836,2]
[419093620,1774865443752,-1016.52876057,0.00012836,2]
[419093621,1774865443767,-1043.79745054,0.00012836,2]
[419093622,1774865443781,-1109.32306528,0.00012836,2]
[419093623,1774865443796,-1109.15963811,0.00012836,2]
[419093624,1774865443811,-1007.78249342,0.00012836,2]
[419093625,1774865443825,-1009.88084008,0.00012836,2]
[419093626,1774865443839,-1117.46861696,0.00012836,2]
[419093627,1774865443854,-250.0,0.00013,2]
[419093628,1774865443868,-600.0,0.00013021,2]
[419093629,1774865443883,-600.0,0.00013021,2]
[419093630,1774865443898,-600.0,0.00013021,2]
[419093631,1774865443912,-120.63809271,0.00013098,2]
[419093632,1774865443927,-250.0,0.00013144,2]
[419093633,1774865443941,-688.15,0.00013551,2]
[419093634,1774865443955,-160.0,0.00013552,2]
[419093635,1774865443969,-151.0,0.00013564,2]
[419093636,1774865443982,-151.0,0.00013564,2]
[419093637,1774865443996,-151.0,0.00013564,2]
[419093638,1774865444011,-151.0,0.00013564,2]
[419093639,1774865444025,-151.0,0.00013564,2]
[419093640,1774865444040,-151.0,0.00013564,2]
[419093641,1774865444053,-151.0,0.00013564,2]
[419093642,1774865444067,-151.0,0.00013564,2]
[419093643,1774865444082,-151.0,0.00013564,2]